[Event "*** Titled Tuesday Blitz"]
[Site "Chess.com"]
[Date "2021.02.02"]
[Round "10"]
[White "KononenkoD"]
[Black "leoduarte"]
[Result "0-1"]
[WhiteElo "2518"]
[BlackElo "2387"]
[TimeControl "180+1"]
[EndTime "11:57:52 PST"]
[Termination "leoduarte won on time"]

1. d4 {[%clk 0:02:55.7]} 1... d5 {[%clk 0:02:56.1]} 2. c4 {[%clk 0:02:56.1]}
2... c6 {[%clk 0:02:56.6]} 3. cxd5 {[%clk 0:02:56.7]} 3... cxd5 {[%clk
0:02:56.6]} 4. Bf4 {[%clk 0:02:57.3]} 4... Nc6 {[%clk 0:02:55.7]} 5. e3 {[%clk
0:02:57.8]} 5... Nf6 {[%clk 0:02:55.8]} 6. Nc3 {[%clk 0:02:58.3]} 6... Bf5
{[%clk 0:02:53.5]} 7. Qb3 {[%clk 0:02:58.1]} 7... Na5 {[%clk 0:02:51.7]} 8. Qa4+
{[%clk 0:02:58.6]} 8... Bd7 {[%clk 0:02:52]} 9. Qc2 {[%clk 0:02:59.1]} 9... e6
{[%clk 0:02:50.2]} 10. Bd3 {[%clk 0:02:58.8]} 10... Rc8 {[%clk 0:02:48.7]} 11.
Nge2 {[%clk 0:02:58.1]} 11... Be7 {[%clk 0:02:41.9]} 12. O-O {[%clk 0:02:57.8]}
12... O-O {[%clk 0:02:40.6]} 13. h3 {[%clk 0:02:57.7]} 13... h6 {[%clk
0:02:40.5]} 14. Rac1 {[%clk 0:02:52.1]} 14... a6 {[%clk 0:02:40]} 15. Ng3 {[%clk
0:02:51.5]} 15... Nc4 {[%clk 0:02:29.8]} 16. Qe2 {[%clk 0:02:50]} 16... Bb4
{[%clk 0:02:24.9]} 17. Bb1 {[%clk 0:02:45]} 17... Qe7 {[%clk 0:02:21]} 18. Be5
{[%clk 0:02:27.7]} 18... Rfd8 {[%clk 0:02:08.5]} 19. f4 {[%clk 0:02:25.1]} 19...
Bc6 {[%clk 0:01:49.5]} 20. f5 {[%clk 0:02:19.4]} 20... Bxc3 {[%clk 0:01:24.9]}
21. Rxc3 {[%clk 0:02:09.8]} 21... Bb5 {[%clk 0:01:07.7]} 22. Bxf6 {[%clk
0:02:03.6]} 22... Qxf6 {[%clk 0:01:03.5]} 23. Nh5 {[%clk 0:02:01.2]} 23... Qg5
{[%clk 0:01:01.1]} 24. h4 {[%clk 0:01:50.8]} 24... Nxe3 {[%clk 0:00:48.5]} 25.
hxg5 {[%clk 0:01:12.3]} 25... Bxe2 {[%clk 0:00:48.1]} 26. Rxe3 {[%clk
0:01:12.7]} 26... Bxf1 {[%clk 0:00:48.2]} 27. Kxf1 {[%clk 0:01:12.2]} 27... Rc1+
{[%clk 0:00:42.8]} 28. Re1 {[%clk 0:01:12.1]} 28... Rdc8 {[%clk 0:00:41.7]} 29.
Bd3 {[%clk 0:00:59.7]} 29... hxg5 {[%clk 0:00:32.9]} 30. Ng3 {[%clk 0:00:49.6]}
30... Rxe1+ {[%clk 0:00:22.6]} 31. Kxe1 {[%clk 0:00:50.5]} 31... Rc1+ {[%clk
0:00:22.8]} 32. Kf2 {[%clk 0:00:28.2]} 32... Ra1 {[%clk 0:00:21]} 33. fxe6
{[%clk 0:00:23.3]} 33... fxe6 {[%clk 0:00:20]} 34. a3 {[%clk 0:00:16.3]} 34...
Ra2 {[%clk 0:00:20.5]} 35. Ne2 {[%clk 0:00:15.1]} 35... Rxb2 {[%clk 0:00:21]}
36. Ke3 {[%clk 0:00:15.3]} 36... Rb3 {[%clk 0:00:21.1]} 37. Ng1 {[%clk
0:00:12.8]} 37... Rxa3 {[%clk 0:00:20.4]} 38. Nf3 {[%clk 0:00:13.5]} 38... g4
{[%clk 0:00:19.6]} 39. Ng5 {[%clk 0:00:14]} 39... g3 {[%clk 0:00:18]} 40. Nxe6
{[%clk 0:00:13.8]} 40... Ra2 {[%clk 0:00:17.5]} 41. Nf4 {[%clk 0:00:14.4]} 41...
a5 {[%clk 0:00:17.6]} 42. Kf3 {[%clk 0:00:12.2]} 42... a4 {[%clk 0:00:16.2]} 43.
Nxd5 {[%clk 0:00:12.4]} 43... Rd2 {[%clk 0:00:14.5]} 44. Bc4 {[%clk 0:00:12.3]}
44... Rxd4 {[%clk 0:00:13.6]} 45. Ba2 {[%clk 0:00:11.2]} 45... Kf8 {[%clk
0:00:11.5]} 46. Kxg3 {[%clk 0:00:10.1]} 46... b5 {[%clk 0:00:11.1]} 47. Nc3
{[%clk 0:00:09.2]} 47... Rd3+ {[%clk 0:00:10.7]} 48. Kf4 {[%clk 0:00:09.7]}
48... Rxc3 {[%clk 0:00:11.2]} 49. Ke5 {[%clk 0:00:10.6]} 49... b4 {[%clk
0:00:11.6]} 50. Kd4 {[%clk 0:00:10.6]} 50... Rc2 {[%clk 0:00:10.3]} 51. Bb1
{[%clk 0:00:10.3]} 51... Rxg2 {[%clk 0:00:10.5]} 52. Kc4 {[%clk 0:00:11.2]}
52... b3 {[%clk 0:00:09.4]} 53. Kb4 {[%clk 0:00:11.5]} 53... b2 {[%clk
0:00:09.6]} 54. Ka3 {[%clk 0:00:11.1]} 54... Ke7 {[%clk 0:00:08.9]} 55. Ka2
{[%clk 0:00:10.3]} 55... Kd6 {[%clk 0:00:08.3]} 56. Be4 {[%clk 0:00:10.8]} 56...
Rf2 {[%clk 0:00:07.3]} 57. Bg6 {[%clk 0:00:09.2]} 57... Kc5 {[%clk 0:00:07.2]}
58. Be8 {[%clk 0:00:06.3]} 58... g5 {[%clk 0:00:07.2]} 59. Bxa4 {[%clk
0:00:05.9]} 59... g4 {[%clk 0:00:07.4]} 60. Bd1 {[%clk 0:00:06.4]} 60... g3
{[%clk 0:00:07.5]} 61. Bg4 {[%clk 0:00:05.8]} 61... g2 {[%clk 0:00:07.5]} 62.
Be6 {[%clk 0:00:06.7]} 62... b1=Q+ {[%clk 0:00:06.3]} 0-1

[Event "*** Titled Tuesday Blitz"]
[Site "Chess.com"]
[Date "2021.02.02"]
[Round "10"]
[White "CSB7"]
[Black "GM_LOADING"]
[Result "1/2-1/2"]
[WhiteElo "2581"]
[BlackElo "2471"]
[TimeControl "180+1"]
[EndTime "11:57:56 PST"]
[Termination "Game drawn by stalemate"]

1. e4 {[%clk 0:03:00.9]} 1... e5 {[%clk 0:02:59]} 2. f4 {[%clk 0:02:59.1]} 2...
exf4 {[%clk 0:02:55.9]} 3. Nf3 {[%clk 0:02:59.5]} 3... d5 {[%clk 0:02:55.6]} 4.
exd5 {[%clk 0:02:59]} 4... Nf6 {[%clk 0:02:55.4]} 5. Bb5+ {[%clk 0:02:58.8]}
5... Nbd7 {[%clk 0:02:28.5]} 6. c4 {[%clk 0:02:40.9]} 6... Bd6 {[%clk
0:02:21.9]} 7. O-O {[%clk 0:02:35.7]} 7... O-O {[%clk 0:02:21.6]} 8. d4 {[%clk
0:02:36.1]} 8... a6 {[%clk 0:02:19.9]} 9. Bxd7 {[%clk 0:02:32.3]} 9... Bxd7
{[%clk 0:02:18.6]} 10. Nc3 {[%clk 0:02:29.7]} 10... Re8 {[%clk 0:02:07.5]} 11.
a4 {[%clk 0:01:49.1]} 11... Ne4 {[%clk 0:01:56.5]} 12. c5 {[%clk 0:01:44.9]}
12... Bf8 {[%clk 0:01:55.9]} 13. Bxf4 {[%clk 0:01:41.2]} 13... Bf5 {[%clk
0:01:54.4]} 14. Qb3 {[%clk 0:01:30.8]} 14... Rb8 {[%clk 0:01:32.9]} 15. Ne5
{[%clk 0:01:26.7]} 15... f6 {[%clk 0:01:27]} 16. d6+ {[%clk 0:00:55.3]} 16...
Be6 {[%clk 0:01:14.9]} 17. Qc2 {[%clk 0:00:22.4]} 17... fxe5 {[%clk 0:00:47.8]}
18. d5 {[%clk 0:00:05]} 18... Nxc3 {[%clk 0:00:39]} 19. dxe6 {[%clk 0:00:04.2]}
19... Rxe6 {[%clk 0:00:39.2]} 20. Qxc3 {[%clk 0:00:03]} 20... cxd6 {[%clk
0:00:36]} 21. Be3 {[%clk 0:00:03.5]} 21... d5 {[%clk 0:00:35.4]} 22. Rad1 {[%clk
0:00:02.6]} 22... d4 {[%clk 0:00:29.8]} 23. Qc4 {[%clk 0:00:02.8]} 23... Qe8
{[%clk 0:00:28.1]} 24. Bg5 {[%clk 0:00:01.6]} 24... Rc8 {[%clk 0:00:25.4]} 25.
b4 {[%clk 0:00:01.8]} 25... Kh8 {[%clk 0:00:25.5]} 26. Rfe1 {[%clk 0:00:01.9]}
26... a5 {[%clk 0:00:22.5]} 27. Rxd4 {[%clk 0:00:02.3]} 27... axb4 {[%clk
0:00:20.9]} 28. Rd5 {[%clk 0:00:02.8]} 28... e4 {[%clk 0:00:19.9]} 29. Kh1
{[%clk 0:00:01.8]} 29... Re5 {[%clk 0:00:18]} 30. Rxe5 {[%clk 0:00:01.6]} 30...
Qxe5 {[%clk 0:00:18.9]} 31. Be3 {[%clk 0:00:02]} 31... Qc3 {[%clk 0:00:12.3]}
32. Qxc3 {[%clk 0:00:01.8]} 32... bxc3 {[%clk 0:00:13.2]} 33. Rc1 {[%clk
0:00:02.5]} 33... Rd8 {[%clk 0:00:13.3]} 34. Kg1 {[%clk 0:00:02.8]} 34... Rd3
{[%clk 0:00:13.3]} 35. Kf2 {[%clk 0:00:03.3]} 35... Be7 {[%clk 0:00:11.8]} 36.
Rc2 {[%clk 0:00:03.1]} 36... Bf6 {[%clk 0:00:09.2]} 37. Ke2 {[%clk 0:00:03.3]}
37... Rd5 {[%clk 0:00:07.8]} 38. Rc1 {[%clk 0:00:02.9]} 38... Rd8 {[%clk
0:00:07]} 39. Rb1 {[%clk 0:00:03.3]} 39... Rd7 {[%clk 0:00:05.4]} 40. c6 {[%clk
0:00:02]} 40... bxc6 {[%clk 0:00:05.4]} 41. Rb8+ {[%clk 0:00:01.6]} 41... Rd8
{[%clk 0:00:05.7]} 42. Rb6 {[%clk 0:00:02.1]} 42... h6 {[%clk 0:00:05.4]} 43.
Rxc6 {[%clk 0:00:02.2]} 43... Ra8 {[%clk 0:00:06.1]} 44. Rc4 {[%clk 0:00:02.5]}
44... Ra6 {[%clk 0:00:05.8]} 45. Rxe4 {[%clk 0:00:02.8]} 45... c2 {[%clk
0:00:04.7]} 46. Rc4 {[%clk 0:00:02.6]} 46... Re6 {[%clk 0:00:03.3]} 47. Kd3
{[%clk 0:00:02.3]} 47... Rxe3+ {[%clk 0:00:02.8]} 48. Kxe3 {[%clk 0:00:03]}
48... c1=Q+ {[%clk 0:00:03.4]} 49. Rxc1 {[%clk 0:00:02.8]} 49... Bg5+ {[%clk
0:00:04.3]} 50. Kd4 {[%clk 0:00:03.7]} 50... Bxc1 {[%clk 0:00:04.8]} 51. a5
{[%clk 0:00:04.2]} 51... Bf4 {[%clk 0:00:04.7]} 52. g3 {[%clk 0:00:03.1]} 52...
Bb8 {[%clk 0:00:04.7]} 53. a6 {[%clk 0:00:02.8]} 53... Ba7+ {[%clk 0:00:05.2]}
54. Ke4 {[%clk 0:00:02.4]} 54... Kh7 {[%clk 0:00:05.8]} 55. g4 {[%clk
0:00:02.7]} 55... Kg6 {[%clk 0:00:06.3]} 56. h4 {[%clk 0:00:03.3]} 56... Kf6
{[%clk 0:00:05.3]} 57. Kf4 {[%clk 0:00:03.6]} 57... g6 {[%clk 0:00:05.3]} 58.
Ke4 {[%clk 0:00:03.6]} 58... Ke6 {[%clk 0:00:05.3]} 59. Kf4 {[%clk 0:00:03.8]}
59... Kd5 {[%clk 0:00:05.4]} 60. h5 {[%clk 0:00:02.8]} 60... gxh5 {[%clk
0:00:05.4]} 61. gxh5 {[%clk 0:00:02.8]} 61... Ke6 {[%clk 0:00:06.3]} 62. Kg4
{[%clk 0:00:03.1]} 62... Ke5 {[%clk 0:00:06.4]} 63. Kh3 {[%clk 0:00:03.7]} 63...
Kf5 {[%clk 0:00:06.9]} 64. Kg2 {[%clk 0:00:04.6]} 64... Kg4 {[%clk 0:00:07.3]}
65. Kh1 {[%clk 0:00:05.2]} 65... Kxh5 {[%clk 0:00:08.2]} 66. Kg2 {[%clk
0:00:05.8]} 66... Kg4 {[%clk 0:00:07.7]} 67. Kh1 {[%clk 0:00:06.7]} 67... Kf5
{[%clk 0:00:08]} 68. Kg2 {[%clk 0:00:07.2]} 68... Ke6 {[%clk 0:00:08.4]} 69. Kh3
{[%clk 0:00:07.8]} 69... Kf5 {[%clk 0:00:08.2]} 70. Kg2 {[%clk 0:00:07.3]} 70...
Kg4 {[%clk 0:00:07.1]} 71. Kh1 {[%clk 0:00:08.2]} 71... Kg3 {[%clk 0:00:06.6]}
1/2-1/2

[Event "*** Titled Tuesday Blitz"]
[Site "Chess.com"]
[Date "2021.02.02"]
[Round "10"]
[White "vovachesss"]
[Black "Oleksandr_Bortnyk"]
[Result "0-1"]
[WhiteElo "2743"]
[BlackElo "2901"]
[TimeControl "180+1"]
[EndTime "11:57:57 PST"]
[Termination "Oleksandr_Bortnyk won on time"]

1. Nf3 {[%clk 0:03:00.9]} 1... Nf6 {[%clk 0:02:57.5]} 2. b3 {[%clk 0:02:59.6]}
2... b6 {[%clk 0:02:57.9]} 3. Bb2 {[%clk 0:02:59.8]} 3... Bb7 {[%clk 0:02:58.8]}
4. g3 {[%clk 0:03:00.3]} 4... d6 {[%clk 0:02:58.3]} 5. Bg2 {[%clk 0:03:00.7]}
5... e5 {[%clk 0:02:59]} 6. O-O {[%clk 0:03:01.1]} 6... Nbd7 {[%clk 0:02:59.3]}
7. c4 {[%clk 0:03:00.6]} 7... Be7 {[%clk 0:02:59.3]} 8. d4 {[%clk 0:02:58.1]}
8... exd4 {[%clk 0:02:57.4]} 9. Nxd4 {[%clk 0:02:56.5]} 9... Bxg2 {[%clk
0:02:58.3]} 10. Kxg2 {[%clk 0:02:57.1]} 10... O-O {[%clk 0:02:58.1]} 11. Nc6
{[%clk 0:02:55.5]} 11... Qe8 {[%clk 0:02:58]} 12. Nc3 {[%clk 0:02:46.5]} 12...
Nc5 {[%clk 0:02:52.5]} 13. Nd4 {[%clk 0:02:39]} 13... Qd7 {[%clk 0:02:47.1]} 14.
Qc2 {[%clk 0:02:36.1]} 14... Rfe8 {[%clk 0:02:37.6]} 15. b4 {[%clk 0:02:31.1]}
15... Ne6 {[%clk 0:02:34.1]} 16. Nf5 {[%clk 0:02:31.3]} 16... Qc6+ {[%clk
0:02:19]} 17. Kg1 {[%clk 0:02:03.6]} 17... Qxc4 {[%clk 0:02:16.6]} 18. a3 {[%clk
0:01:40.7]} 18... Nd5 {[%clk 0:01:58.1]} 19. Rac1 {[%clk 0:01:31.7]} 19... Nxc3
{[%clk 0:01:47.5]} 20. Bxc3 {[%clk 0:01:31.8]} 20... Bf8 {[%clk 0:01:41.1]} 21.
Qd2 {[%clk 0:01:07.8]} 21... Qe4 {[%clk 0:01:22.3]} 22. Ne3 {[%clk 0:00:55]}
22... Ng5 {[%clk 0:01:19.3]} 23. Ng2 {[%clk 0:00:24.8]} 23... Nh3+ {[%clk
0:01:16.2]} 24. Kh1 {[%clk 0:00:25.4]} 24... Qxe2 {[%clk 0:01:17.1]} 25. Qd4
{[%clk 0:00:25.9]} 25... Re4 {[%clk 0:01:15.8]} 26. Qd5 {[%clk 0:00:23.5]} 26...
Rae8 {[%clk 0:01:15.5]} 27. Qf5 {[%clk 0:00:18.9]} 27... Qg4 {[%clk 0:00:46.7]}
28. Qxg4 {[%clk 0:00:18.8]} 28... Rxg4 {[%clk 0:00:47.6]} 29. Ne3 {[%clk
0:00:19.7]} 29... Rge4 {[%clk 0:00:46.4]} 30. Nd5 {[%clk 0:00:19.4]} 30... c6
{[%clk 0:00:45.3]} 31. Nc7 {[%clk 0:00:17.3]} 31... R8e7 {[%clk 0:00:39.4]} 32.
Na6 {[%clk 0:00:18.2]} 32... Re2 {[%clk 0:00:37.5]} 33. Bd4 {[%clk 0:00:17.7]}
33... c5 {[%clk 0:00:33.9]} 34. Be3 {[%clk 0:00:17.6]} 34... g6 {[%clk
0:00:31.1]} 35. Nb8 {[%clk 0:00:14]} 35... Bg7 {[%clk 0:00:09.4]} 36. Nc6 {[%clk
0:00:14.1]} 36... Rc7 {[%clk 0:00:09.8]} 37. b5 {[%clk 0:00:14.5]} 37... h6
{[%clk 0:00:09.5]} 38. Rcd1 {[%clk 0:00:12.9]} 38... Rd7 {[%clk 0:00:07]} 39.
Nb8 {[%clk 0:00:11.8]} 39... Rb7 {[%clk 0:00:06.4]} 40. Nc6 {[%clk 0:00:12.7]}
40... Bf8 {[%clk 0:00:06.3]} 41. Kg2 {[%clk 0:00:09.5]} 41... Ng5 {[%clk
0:00:06.4]} 42. Bf4 {[%clk 0:00:10.1]} 42... Rb2 {[%clk 0:00:05.9]} 43. Bxd6
{[%clk 0:00:08.9]} 43... Bxd6 {[%clk 0:00:06.8]} 44. Rxd6 {[%clk 0:00:09.1]}
44... Rxb5 {[%clk 0:00:07.6]} 45. Re1 {[%clk 0:00:08.9]} 45... Ne6 {[%clk
0:00:07.1]} 46. Ne5 {[%clk 0:00:07.5]} 46... Nd4 {[%clk 0:00:05.2]} 47. Nd7
{[%clk 0:00:06]} 47... Ne6 {[%clk 0:00:02.2]} 48. Ne5 {[%clk 0:00:05.8]} 48...
Kg7 {[%clk 0:00:02.8]} 49. Nxf7 {[%clk 0:00:05.6]} 49... Rxf7 {[%clk 0:00:02.7]}
50. Rexe6 {[%clk 0:00:05.6]} 50... g5 {[%clk 0:00:03.1]} 51. Rg6+ {[%clk
0:00:05.5]} 51... Kf8 {[%clk 0:00:03.8]} 52. Rxh6 {[%clk 0:00:05.5]} 52... Rb2
{[%clk 0:00:04.5]} 53. Rhf6 {[%clk 0:00:05.9]} 53... c4 {[%clk 0:00:04.7]} 54.
Rc6 {[%clk 0:00:05.4]} 54... b5 {[%clk 0:00:04.5]} 55. Rxf7+ {[%clk 0:00:04.8]}
55... Kxf7 {[%clk 0:00:05.4]} 56. Rc5 {[%clk 0:00:05.7]} 56... a5 {[%clk
0:00:04.6]} 57. a4 {[%clk 0:00:05.6]} 57... b4 {[%clk 0:00:04]} 58. Rxc4 {[%clk
0:00:05.5]} 58... Ra2 {[%clk 0:00:04.6]} 59. Rc5 {[%clk 0:00:05.2]} 59... Rxa4
{[%clk 0:00:04.5]} 60. Rb5 {[%clk 0:00:03.6]} 60... Ra2 {[%clk 0:00:04.3]} 61.
Kf3 {[%clk 0:00:03.9]} 61... Ra3+ {[%clk 0:00:04.3]} 62. Kg4 {[%clk 0:00:04.3]}
62... b3 {[%clk 0:00:05.2]} 63. Kxg5 {[%clk 0:00:04.8]} 63... a4 {[%clk
0:00:06.1]} 64. h4 {[%clk 0:00:05.3]} 64... Ra2 {[%clk 0:00:06.3]} 65. h5 {[%clk
0:00:05.9]} 65... Rxf2 {[%clk 0:00:06.2]} 66. Rb4 {[%clk 0:00:04.8]} 66... b2
{[%clk 0:00:06]} 67. h6 {[%clk 0:00:04.7]} 67... a3 {[%clk 0:00:05.9]} 68. Rb7+
{[%clk 0:00:04.8]} 68... Ke6 {[%clk 0:00:06]} 69. h7 {[%clk 0:00:03.2]} 69...
Rh2 {[%clk 0:00:06.1]} 70. Kg6 {[%clk 0:00:02.9]} 70... Rxh7 {[%clk 0:00:03.2]}
71. Kxh7 {[%clk 0:00:02.8]} 71... a2 {[%clk 0:00:03.9]} 72. Rxb2 {[%clk
0:00:02.7]} 72... a1=Q {[%clk 0:00:04.5]} 73. Rb7 {[%clk 0:00:02.6]} 73... Qh1+
{[%clk 0:00:03.9]} 74. Kg7 {[%clk 0:00:02.2]} 74... Qxb7+ {[%clk 0:00:04.8]} 0-1

[Event "*** Titled Tuesday Blitz"]
[Site "Chess.com"]
[Date "2021.02.02"]
[Round "10"]
[White "Carnivoras"]
[Black "Unknown_IM"]
[Result "1-0"]
[WhiteElo "2570"]
[BlackElo "2375"]
[TimeControl "180+1"]
[EndTime "11:57:58 PST"]
[Termination "Carnivoras won by checkmate"]

1. d4 {[%clk 0:02:55.4]} 1... Nf6 {[%clk 0:03:00]} 2. c4 {[%clk 0:02:54.7]} 2...
c5 {[%clk 0:03:00]} 3. d5 {[%clk 0:02:54.1]} 3... b5 {[%clk 0:03:00.5]} 4. cxb5
{[%clk 0:02:53.6]} 4... a6 {[%clk 0:03:00]} 5. bxa6 {[%clk 0:02:54.5]} 5... Bxa6
{[%clk 0:02:59.4]} 6. Nc3 {[%clk 0:02:55.4]} 6... d6 {[%clk 0:02:59]} 7. e4
{[%clk 0:02:56]} 7... Bxf1 {[%clk 0:02:58.5]} 8. Kxf1 {[%clk 0:02:56.9]} 8... g6
{[%clk 0:02:59]} 9. g3 {[%clk 0:02:57.2]} 9... Bg7 {[%clk 0:02:59.4]} 10. Kg2
{[%clk 0:02:57.9]} 10... O-O {[%clk 0:02:58.8]} 11. Nf3 {[%clk 0:02:58.3]} 11...
Nbd7 {[%clk 0:02:59.4]} 12. h3 {[%clk 0:02:59]} 12... Qa5 {[%clk 0:02:58.5]} 13.
Re1 {[%clk 0:02:59.4]} 13... Rfb8 {[%clk 0:02:57.8]} 14. Re2 {[%clk 0:02:59.9]}
14... h6 {[%clk 0:02:56.9]} 15. Qc2 {[%clk 0:03:00.2]} 15... Ne8 {[%clk
0:02:57.4]} 16. Rb1 {[%clk 0:02:43.7]} 16... Nc7 {[%clk 0:02:53.2]} 17. Bd2
{[%clk 0:02:19]} 17... Qa6 {[%clk 0:02:51.9]} 18. a3 {[%clk 0:02:11.8]} 18...
Nb5 {[%clk 0:02:50.8]} 19. Nxb5 {[%clk 0:01:45.5]} 19... Qxb5 {[%clk 0:02:51.7]}
20. Be1 {[%clk 0:01:32.1]} 20... Nb6 {[%clk 0:02:32.1]} 21. b4 {[%clk
0:01:18.7]} 21... Na4 {[%clk 0:02:27.4]} 22. Rc1 {[%clk 0:01:00]} 22... Rc8
{[%clk 0:02:21.7]} 23. Re3 {[%clk 0:00:52.9]} 23... Nb6 {[%clk 0:02:18.2]} 24.
Qb1 {[%clk 0:00:42.8]} 24... cxb4 {[%clk 0:02:12.8]} 25. Rxc8+ {[%clk
0:00:38.8]} 25... Rxc8 {[%clk 0:02:12.2]} 26. Qxb4 {[%clk 0:00:39.5]} 26... Qxb4
{[%clk 0:02:10.6]} 27. Bxb4 {[%clk 0:00:40.4]} 27... Rc1 {[%clk 0:02:08.9]} 28.
Re1 {[%clk 0:00:38.5]} 28... Rc2 {[%clk 0:02:02.9]} 29. Rd1 {[%clk 0:00:32.2]}
29... Nc4 {[%clk 0:01:58.4]} 30. Nd4 {[%clk 0:00:32.4]} 30... Ra2 {[%clk
0:01:49.7]} 31. Rd3 {[%clk 0:00:32.1]} 31... Ne5 {[%clk 0:01:40.2]} 32. Rd1
{[%clk 0:00:29.5]} 32... Nc4 {[%clk 0:01:39.5]} 33. Rd3 {[%clk 0:00:29.7]} 33...
Ne5 {[%clk 0:01:30.1]} 34. Rc3 {[%clk 0:00:28.2]} 34... Ng4 {[%clk 0:01:10.8]}
35. Rc8+ {[%clk 0:00:27.1]} 35... Kh7 {[%clk 0:01:09.8]} 36. Rc2 {[%clk
0:00:27.7]} 36... Ra1 {[%clk 0:01:00.4]} 37. Nc6 {[%clk 0:00:25.4]} 37... Nf6
{[%clk 0:00:55.4]} 38. Re2 {[%clk 0:00:22.4]} 38... Bf8 {[%clk 0:00:54.3]} 39.
Kf3 {[%clk 0:00:17.4]} 39... g5 {[%clk 0:00:47.3]} 40. Rc2 {[%clk 0:00:17.2]}
40... Kg6 {[%clk 0:00:44.4]} 41. Nd4 {[%clk 0:00:16.6]} 41... Bg7 {[%clk
0:00:42.4]} 42. Nf5 {[%clk 0:00:16.2]} 42... Bf8 {[%clk 0:00:42.1]} 43. Rc8
{[%clk 0:00:16.4]} 43... Nd7 {[%clk 0:00:40.9]} 44. Rd8 {[%clk 0:00:16.5]} 44...
Ne5+ {[%clk 0:00:40.6]} 45. Kg2 {[%clk 0:00:16.9]} 45... Bg7 {[%clk 0:00:36.6]}
46. Nxe7+ {[%clk 0:00:17.2]} 46... Kh7 {[%clk 0:00:37.2]} 47. Nf5 {[%clk
0:00:18.1]} 47... Bh8 {[%clk 0:00:31.2]} 48. Bxd6 {[%clk 0:00:17.1]} 48... Nd3
{[%clk 0:00:30.3]} 49. Rd7 {[%clk 0:00:14.7]} 49... Ra2 {[%clk 0:00:27.3]} 50.
Rxf7+ {[%clk 0:00:14.7]} 50... Kg6 {[%clk 0:00:27]} 51. Rf8 {[%clk 0:00:11.5]}
51... Rxf2+ {[%clk 0:00:27]} 52. Kg1 {[%clk 0:00:11.9]} 52... Bf6 {[%clk
0:00:21.6]} 53. e5 {[%clk 0:00:05.5]} 53... Rxf5 {[%clk 0:00:16]} 54. Rxf6+
{[%clk 0:00:04.9]} 54... Rxf6 {[%clk 0:00:16.4]} 55. exf6 {[%clk 0:00:05.8]}
55... Kxf6 {[%clk 0:00:17.3]} 56. Bb4 {[%clk 0:00:06.5]} 56... Ke5 {[%clk
0:00:16.5]} 57. d6 {[%clk 0:00:07]} 57... Ke6 {[%clk 0:00:16.2]} 58. Kg2 {[%clk
0:00:06.9]} 58... h5 {[%clk 0:00:16.6]} 59. Kf3 {[%clk 0:00:07.3]} 59... Ne5+
{[%clk 0:00:17.5]} 60. Ke4 {[%clk 0:00:07.6]} 60... Nd7 {[%clk 0:00:17.4]} 61.
a4 {[%clk 0:00:07.6]} 61... Nf6+ {[%clk 0:00:17.8]} 62. Kd4 {[%clk 0:00:07.5]}
62... Nd5 {[%clk 0:00:15.4]} 63. Bc5 {[%clk 0:00:07.2]} 63... h4 {[%clk
0:00:14.6]} 64. gxh4 {[%clk 0:00:06.7]} 64... gxh4 {[%clk 0:00:15.5]} 65. a5
{[%clk 0:00:07.5]} 65... Nf4 {[%clk 0:00:15.9]} 66. a6 {[%clk 0:00:08]} 66...
Nxh3 {[%clk 0:00:11.3]} 67. a7 {[%clk 0:00:08.4]} 67... Ng5 {[%clk 0:00:11.1]}
68. a8=Q {[%clk 0:00:08.8]} 68... h3 {[%clk 0:00:12]} 69. Qd5+ {[%clk 0:00:09]}
69... Kd7 {[%clk 0:00:11.6]} 70. Qxg5 {[%clk 0:00:09.1]} 70... h2 {[%clk
0:00:12.5]} 71. Qe7+ {[%clk 0:00:09.7]} 71... Kc6 {[%clk 0:00:12.6]} 72. Qc7+
{[%clk 0:00:10.2]} 72... Kb5 {[%clk 0:00:13.5]} 73. Qb7+ {[%clk 0:00:10.7]}
73... Ka4 {[%clk 0:00:14.1]} 74. Qh1 {[%clk 0:00:11.2]} 74... Ka5 {[%clk
0:00:14.1]} 75. d7 {[%clk 0:00:11.7]} 75... Ka6 {[%clk 0:00:15]} 76. d8=Q {[%clk
0:00:11.3]} 76... Kb5 {[%clk 0:00:14.4]} 77. Qb6+ {[%clk 0:00:11.9]} 77... Ka4
{[%clk 0:00:14.5]} 78. Qa1# {[%clk 0:00:12.4]} 1-0